fUST/lending_fUST_20250603
["ID","MTS","AMOUNT","RATE_DAILY","PERIOD"]
[363894798,1748914244629,-440.0,0.00019452,2]
[363894799,1748914244639,-1406.4,0.00019452,2]
[363894800,1748914244649,-626.61,0.00019452,2]
[363894801,1748914244658,-209.75964092,0.00019555,2]
[363894802,1748914244668,-1008.71777161,0.00019555,2]
[363894803,1748914244677,-220.141,0.00019629,2]
[363894804,1748914244687,-151.0,0.00019726,2]
[363894805,1748914244697,-151.0,0.00019726,2]
[363894806,1748914244707,-151.0,0.00019726,2]
[363894807,1748914244717,-151.0,0.00019726,2]
[363894808,1748914244727,-581.4,0.00019726,2]
[363894809,1748914244737,-979.6,0.00019726,2]
[363894810,1748914244747,-488.36,0.00019726,2]
[363894811,1748914244757,-440.0,0.00019726,2]
[363894812,1748914244767,-497.19,0.00019726,2]
[363894813,1748914244777,-845.18,0.00019726,2]
[363894814,1748914244787,-692.73,0.00019726,2]
[363894815,1748914244798,-647.9,0.00019726,2]
[363894816,1748914244961,-1623.58,0.00019726,2]
[363894817,1748914244993,-593.07,0.00019726,2]
[363894818,1748914245003,-440.0,0.00019726,2]
[363894819,1748914245014,-496.07,0.00019726,2]
[363894820,1748914245024,-440.0,0.00019726,2]
[363894821,1748914245034,-901.31,0.00019726,2]
[363894822,1748914245043,-440.0,0.00019726,2]
[363894823,1748914245053,-587.36,0.00019726,2]
[363894824,1748914245063,-351.09016363,0.00019726,2]
[363894825,1748914245073,-440.0,0.00019726,2]
[363894826,1748914245083,-722.31,0.00019726,2]
[363894827,1748914245092,-794.97,0.00019726,2]
[363894828,1748914245102,-440.0,0.00019726,2]
[363894829,1748914245112,-2728.26,0.00019726,2]
[363894830,1748914245121,-453.3,0.00019726,2]
[363894831,1748914245131,-440.0,0.00019726,2]
[363894832,1748914245150,-440.0,0.00019726,2]
[363894833,1748914245162,-1406.4,0.00019726,2]
[363894834,1748914245172,-626.61,0.00019726,2]
[363894835,1748914245182,-1008.71777161,0.00019762,2]
[363894836,1748914245194,-2000.0,0.000198,2]
[363894837,1748914245205,-10223.7,0.00019883,2]
[363894838,1748914245217,-500.0,0.0001991,2]
[363894839,1748914245227,-900.0,0.00019964,2]
[363894840,1748914245238,-1008.71777161,0.00019969,2]
[363894841,1748914245248,-151.0,0.0002,2]
[363894842,1748914245258,-151.0,0.0002,2]
[363894843,1748914245268,-979.6,0.0002,2]
[363894844,1748914245278,-488.36,0.0002,2]
[363894845,1748914245289,-232.94,0.0002,2]
[363894846,1748914245299,-497.19,0.0002,2]
[363894847,1748914245309,-845.18,0.0002,2]
[363894848,1748914245319,-692.73,0.0002,2]
[363894849,1748914245329,-647.9,0.0002,2]
[363894850,1748914245339,-1623.58,0.0002,2]
[363894851,1748914245351,-593.07,0.0002,2]
[363894852,1748914245361,-440.0,0.0002,2]
[363894853,1748914245374,-496.07,0.0002,2]
[363894854,1748914245384,-999.999999,0.0002,2]
[363894855,1748914245395,-440.0,0.0002,2]
[363894856,1748914245406,-901.31,0.0002,2]
[363894857,1748914245416,-440.0,0.0002,2]
[363894858,1748914245425,-587.36,0.0002,2]
[363894859,1748914245435,-179.21,0.0002,2]
[363894860,1748914245445,-184.12186734,0.0002,2]
[363894861,1748914245456,-722.31,0.0002,2]
[363894862,1748914245467,-794.97,0.0002,2]
[363894863,1748914245477,-440.0,0.0002,2]
[363894864,1748914245487,-2728.26,0.0002,2]
[363894865,1748914245497,-453.3,0.0002,2]
[363894866,1748914245507,-440.0,0.0002,2]
[363894867,1748914245517,-199.77532635,0.0002,2]
[363894868,1748914245527,-1406.4,0.0002,2]
[363894869,1748914245537,-19432.0,0.0002,2]
[363894870,1748914245547,-626.61,0.0002,2]
[363894871,1748914245557,-151.0,0.00020136,2]
[363894872,1748914245566,-151.0,0.00020163,2]
[363894873,1748914245577,-1008.71777161,0.00020176,2]
[363894874,1748914245587,-203.982286,0.00020187,2]
[363894875,1748914245597,-151.0,0.00020191,2]
[363894876,1748914245607,-202.57043117,0.00020218,2]
[363894877,1748914245618,-979.6,0.00020273,2]
[363894878,1748914245627,-488.36,0.00020273,2]
[363894879,1748914245638,-497.19,0.00020273,2]
[363894880,1748914245648,-845.18,0.00020273,2]
[363894881,1748914245658,-692.73,0.00020273,2]
[363894882,1748914245670,-647.9,0.00020273,2]
[363894883,1748914245680,-1623.58,0.00020273,2]
[363894884,1748914245691,-593.07,0.00020273,2]
[363894885,1748914245703,-440.0,0.00020273,2]
[363894886,1748914245713,-496.07,0.00020273,2]
[363894887,1748914245723,-440.0,0.00020273,2]
[363894888,1748914245734,-901.31,0.00020273,2]
[363894889,1748914245744,-295.27549287,0.00020273,2]
[363894890,1748914245754,-587.36,0.00020273,2]
[363894891,1748914245765,-722.31,0.00020273,2]
[363894892,1748914245775,-794.97,0.00020273,2]
[363894893,1748914245786,-440.0,0.00020273,2]
[363894894,1748914245797,-2728.26,0.00020273,2]
[363894895,1748914245807,-453.3,0.00020273,2]
[363894896,1748914245817,-440.0,0.00020273,2]
[363894897,1748914245827,-1406.4,0.00020273,2]
[363894898,1748914245838,-626.61,0.00020273,2]
[363894899,1748914245849,-1008.71777161,0.00020383,3]
[363894900,1748914245860,-151.0,0.00020547,2]
[363894901,1748914245870,-151.0,0.00020547,2]
[363894902,1748914245880,-151.0,0.00020547,2]
[363894903,1748914245890,-151.0,0.00020547,2]
[363894904,1748914245901,-979.6,0.00020547,2]
[363894905,1748914245912,-488.36,0.00020547,2]
[363894906,1748914245922,-497.19,0.00020547,2]
[363894908,1748914245931,-845.18,0.00020547,2]
[363894910,1748914245941,-692.73,0.00020547,2]
[363894912,1748914245951,-647.9,0.00020547,2]
[363894914,1748914245961,-1623.58,0.00020547,2]
[363894915,1748914245971,-593.07,0.00020547,2]
[363894917,1748914245981,-440.0,0.00020547,2]
[363894918,1748914245991,-496.07,0.00020547,2]
[363894919,1748914246000,-427.65,0.00020547,2]
[363894920,1748914246010,-901.31,0.00020547,2]
[363894921,1748914246021,-587.36,0.00020547,2]
[363894922,1748914246030,-722.31,0.00020547,2]
[363894923,1748914246040,-794.97,0.00020547,2]
[363894924,1748914246050,-440.0,0.00020547,2]
[363894925,1748914246059,-2728.26,0.00020547,2]
[363894926,1748914246069,-453.3,0.00020547,2]
[363894927,1748914246079,-440.0,0.00020547,2]
[363894928,1748914246088,-1406.4,0.00020547,2]
[363894929,1748914246099,-626.61,0.00020547,2]
[363894930,1748914246110,-1008.71777161,0.0002059,3]
[363894931,1748914246119,-1925.06,0.000206,2]
[363894932,1748914246129,-209.75964092,0.00020627,2]
[363894933,1748914246139,-271.84649128,0.0002071,2]
[363894934,1748914246149,-13631.6,0.00020747,2]
[363894935,1748914246158,-1008.71777161,0.00020797,4]
[363894936,1748914246168,-979.6,0.00020821,2]
[363894937,1748914246178,-488.36,0.00020821,2]
[363894938,1748914246188,-497.19,0.00020821,2]
[363894939,1748914246197,-845.18,0.00020821,2]
[363894940,1748914246207,-692.73,0.00020821,2]
[363894941,1748914246216,-647.9,0.00020821,2]
[363894942,1748914246226,-1623.58,0.00020821,2]
[363894943,1748914246236,-593.07,0.00020821,2]
[363894944,1748914246247,-440.0,0.00020821,2]
[363894945,1748914246257,-496.07,0.00020821,2]
[363894946,1748914246266,-901.31,0.00020821,2]
[363894947,1748914246276,-587.36,0.00020821,2]
[363894948,1748914246286,-722.31,0.00020821,2]
[363894949,1748914246296,-794.97,0.00020821,2]
[363894950,1748914246305,-440.0,0.00020821,2]
[363894951,1748914246315,-2728.26,0.00020821,2]
[363894952,1748914246326,-453.3,0.00020821,2]
[363894953,1748914246335,-440.0,0.00020821,2]
[363894954,1748914246346,-1406.4,0.00020821,2]
[363894955,1748914246356,-626.61,0.00020821,2]
[363894956,1748914246366,-1008.71777161,0.00021003,4]
[363894957,1748914246380,-900.0,0.0002106,2]
[363894958,1748914246399,-151.0,0.00021095,2]
[363894959,1748914246408,-151.0,0.00021095,2]
[363894960,1748914246418,-979.6,0.00021095,2]
[363894961,1748914246428,-488.36,0.00021095,2]
[363894962,1748914246438,-497.19,0.00021095,2]
[363894963,1748914246447,-845.18,0.00021095,2]
[363894964,1748914246457,-692.73,0.00021095,2]
[363894965,1748914246467,-647.9,0.00021095,2]
[363894966,1748914246477,-1623.58,0.00021095,2]
[363894967,1748914246488,-593.07,0.00021095,2]
[363894968,1748914246498,-440.0,0.00021095,2]
[363894969,1748914246507,-496.07,0.00021095,2]
[363894970,1748914246517,-901.31,0.00021095,2]
[363894971,1748914246526,-587.36,0.00021095,2]
[363894972,1748914246536,-722.31,0.00021095,2]
[363894973,1748914246546,-794.97,0.00021095,2]
[363894974,1748914246556,-440.0,0.00021095,2]
[363894975,1748914246565,-2728.26,0.00021095,2]
[363894976,1748914246575,-453.3,0.00021095,2]
[363894977,1748914246585,-440.0,0.00021095,2]
[363894978,1748914246595,-1406.4,0.00021095,2]
[363894979,1748914246605,-626.61,0.00021095,2]
[363894980,1748914246615,-1044.99,0.00021199,2]
[363894981,1748914246627,-215.13138,0.00021199,2]
[363894982,1748914246637,-151.0,0.00021199,2]
[363894983,1748914246648,-151.0,0.00021199,2]
[363894984,1748914246657,-151.0,0.00021199,2]
[363894985,1748914246667,-207.4,0.00021199,2]
[363894986,1748914246677,-500.0,0.00021199,2]
[363894987,1748914246687,-500.0,0.00021199,2]
[363894988,1748914246697,-500.0,0.00021199,2]
[363894989,1748914246706,-500.0,0.00021199,2]
[363894990,1748914246716,-500.0,0.00021199,2]
[363894991,1748914246725,-500.0,0.00021199,2]
[363894992,1748914246735,-500.0,0.00021199,2]
[363894993,1748914246745,-500.0,0.00021199,2]
[363894994,1748914246755,-500.0,0.00021199,2]
[363894995,1748914246765,-5000.0,0.00021199,2]
[363894996,1748914246776,-500.0,0.00021199,2]
[363894997,1748914246786,-500.0,0.00021199,2]
[363894998,1748914246796,-500.0,0.00021199,2]
[363894999,1748914246806,-500.0,0.00021199,2]
[363895000,1748914246817,-500.0,0.00021199,2]
[363895001,1748914246829,-3642.092865,0.00021199,2]
[363895002,1748914246838,-500.0,0.00021199,2]
[363895003,1748914246848,-500.0,0.00021199,2]
[363895004,1748914246858,-500.0,0.00021199,2]
[363895005,1748914246868,-500.0,0.00021199,2]
[363895006,1748914246879,-500.0,0.00021199,2]
[363895007,1748914246889,-500.0,0.00021199,2]
[363895008,1748914246900,-500.0,0.00021199,2]
[363895009,1748914246910,-500.0,0.00021199,2]
[363895010,1748914246920,-500.0,0.00021199,2]
[363895011,1748914246929,-500.0,0.00021199,2]
[363895012,1748914246939,-500.0,0.00021199,2]
[363895013,1748914246948,-500.0,0.00021199,2]
[363895014,1748914246958,-500.0,0.00021199,2]
[363895015,1748914246968,-500.0,0.00021199,2]
[363895016,1748914246978,-500.0,0.00021199,2]
[363895017,1748914246988,-500.0,0.00021199,2]
[363895018,1748914246997,-1008.71777161,0.0002121,4]
[363895019,1748914247007,-1044.99,0.00021299,2]
[363895020,1748914247017,-979.6,0.00021369,2]
[363895021,1748914247026,-488.36,0.00021369,2]
[363895022,1748914247036,-497.19,0.00021369,2]
[363895023,1748914247046,-845.18,0.00021369,2]
[363895024,1748914247055,-692.73,0.00021369,2]
[363895025,1748914247065,-647.9,0.00021369,2]
[363895026,1748914247075,-1623.58,0.00021369,2]
[363895027,1748914247086,-593.07,0.00021369,2]
[363895028,1748914247097,-440.0,0.00021369,2]
[363895029,1748914247107,-496.07,0.00021369,2]
[363895030,1748914247117,-901.31,0.00021369,2]
[363895031,1748914247127,-587.36,0.00021369,2]
[363895032,1748914247137,-722.31,0.00021369,2]
[363895033,1748914247147,-794.97,0.00021369,2]
[363895034,1748914247156,-571.6,0.00021369,2]
[363895035,1748914247166,-2728.26,0.00021369,2]
[363895036,1748914247176,-453.3,0.00021369,2]
[363895037,1748914247187,-440.0,0.00021369,2]
[363895038,1748914247197,-1406.4,0.00021369,2]
[363895039,1748914247207,-626.61,0.00021369,2]
[363895040,1748914247217,-500.0,0.00021372,2]
[363895041,1748914247227,-1044.99,0.00021399,2]
[363895042,1748914247236,-151.0,0.000214,4]
[363895043,1748914247246,-1008.71777161,0.00021417,5]
[363895044,1748914247256,-1044.99,0.00021499,2]
[363895045,1748914247265,-1044.99,0.00021599,2]
[363895046,1748914247275,-17039.5,0.00021612,2]
[363895047,1748914247284,-1008.71777161,0.00021624,5]
[363895048,1748914247294,-979.6,0.00021643,2]
[363895049,1748914247303,-488.36,0.00021643,2]
[363895050,1748914247313,-497.19,0.00021643,2]
[363895051,1748914247323,-845.18,0.00021643,2]
[363895052,1748914247332,-692.73,0.00021643,2]
[363895053,1748914247342,-647.9,0.00021643,2]
[363895054,1748914247352,-1623.58,0.00021643,2]
[363895055,1748914247363,-593.07,0.00021643,2]
[363895056,1748914247373,-440.0,0.00021643,2]
[363895057,1748914247386,-496.07,0.00021643,2]
[363895058,1748914247397,-901.31,0.00021643,2]
[363895059,1748914247406,-587.36,0.00021643,2]
[363895060,1748914247417,-722.31,0.00021643,2]
[363895061,1748914247427,-794.97,0.00021643,2]
[363895062,1748914247437,-2728.26,0.00021643,2]
[363895063,1748914247447,-453.3,0.00021643,2]
[363895064,1748914247459,-440.0,0.00021643,2]
[363895065,1748914247470,-1406.4,0.00021643,2]
[363895066,1748914247480,-626.61,0.00021643,2]
[363895067,1748914247489,-1044.99,0.00021699,2]
[363895068,1748914247499,-209.75964092,0.00021699,2]
[363895069,1748914247509,-1925.06,0.000217,2]
[363895070,1748914247519,-8785.80297612,0.000217,2]
[363895071,1748914247529,-5000.0,0.00021747,2]
[363895072,1748914247539,-153.0,0.00021753,2]
[363895073,1748914247549,-153.0,0.00021753,2]
[363895074,1748914247558,-153.0,0.00021753,2]
[363895075,1748914247567,-153.0,0.00021753,2]
[363895076,1748914247578,-168.9469918,0.00021753,2]
[363895077,1748914247587,-153.0,0.00021753,2]
[363895078,1748914247598,-1044.99,0.00021799,2]
[363895079,1748914247608,-2000.0,0.000218,3]
[363895080,1748914247618,-2000.0,0.000218,4]
[363895081,1748914247628,-2000.0,0.000218,5]
[363895082,1748914247638,-2000.0,0.000218,6]
[363895083,1748914247647,-1008.71777161,0.00021831,6]
[363895084,1748914247656,-965.62,0.0002186,2]
[363895085,1748914247666,-1044.99,0.00021899,2]
[363895086,1748914247676,-151.0,0.000219,4]
[363895087,1748914247685,-483.19,0.00021916,2]
[363895088,1748914247695,-151.0,0.00021917,2]
[363895089,1748914247705,-151.0,0.00021917,2]
[363895090,1748914247714,-200.0,0.00021917,2]
[363895091,1748914247725,-500.0,0.00021917,2]
[363895092,1748914247736,-979.6,0.00021917,2]
[363895093,1748914247745,-488.36,0.00021917,2]
[363895094,1748914247756,-497.19,0.00021917,2]
[363895095,1748914247765,-845.18,0.00021917,2]
[363895096,1748914247775,-692.73,0.00021917,2]
[363895097,1748914247784,-647.9,0.00021917,2]
[363895098,1748914247911,-1623.58,0.00021917,2]
[363895099,1748914247922,-593.07,0.00021917,2]
[363895100,1748914247932,-440.0,0.00021917,2]
[363895101,1748914247942,-496.07,0.00021917,2]
[363895102,1748914247952,-901.31,0.00021917,2]
[363895103,1748914247962,-587.36,0.00021917,2]
[363895104,1748914247972,-500.0,0.00021917,2]
[363895105,1748914247981,-500.0,0.00021917,2]
[363895106,1748914247991,-500.0,0.00021917,2]
[363895107,1748914248000,-500.0,0.00021917,2]
[363895108,1748914248010,-500.0,0.00021917,2]
[363895109,1748914248020,-500.0,0.00021917,2]
[363895110,1748914248029,-500.0,0.00021917,2]
[363895111,1748914248039,-500.0,0.00021917,2]
[363895112,1748914248049,-500.0,0.00021917,2]
[363895113,1748914248058,-500.0,0.00021917,2]
[363895114,1748914248068,-500.0,0.00021917,2]
[363895115,1748914248078,-722.31,0.00021917,2]
[363895116,1748914248088,-794.97,0.00021917,2]
[363895117,1748914248098,-2728.26,0.00021917,2]
[363895118,1748914248109,-453.3,0.00021917,2]
[363895119,1748914248118,-358.43848367,0.00021917,2]
[363895120,1748914248128,-1406.4,0.00021917,2]
[363895121,1748914248138,-626.61,0.00021917,2]
[363895122,1748914248147,-150.0,0.00021918,2]
[363895123,1748914248157,-500.0,0.00021918,2]
[363895124,1748914248167,-500.0,0.00021918,2]
[363895125,1748914248179,-500.0,0.00021918,2]
[363895126,1748914248188,-500.0,0.00021918,2]
[363895127,1748914248198,-500.0,0.00021918,2]
[363895128,1748914248208,-500.0,0.00021918,2]
[363895129,1748914248217,-500.0,0.00021918,2]
[363895130,1748914248228,-465.29007851,0.00021918,2]
[363895131,1748914248238,-500.0,0.00021918,2]
[363895132,1748914248248,-546.2439137,0.00021941,2]
[363895133,1748914248258,-151.0,0.00021968,7]
[363895134,1748914248268,-151.0,0.00021968,7]
[363895135,1748914248278,-151.0,0.00021968,7]
[363895136,1748914248287,-500.0,0.00021973,2]
[363895137,1748914248297,-500.0,0.00021973,2]
[363895138,1748914248307,-600.0,0.00021973,2]
[363895139,1748914248316,-1044.99,0.00021999,3]
[363895140,1748914248326,-59866.97804834,0.00021999,2]
[363895141,1748914248441,-5155.55630024,0.00021999,2]
[363895142,1748914248454,-1532.98877395,0.00021999,2]
[363895166,1748914479018,193.910766,0.00013699,2]
[363895167,1748914535556,548.2407,0.00024,120]
[363895168,1748914535815,11755.1155157,0.00024649,120]
[363895478,1748915437998,-200.89414139,0.00016337,2]
[363895480,1748915438008,-671.38059694,0.00016338,2]
[363895482,1748915438018,-300.0,0.00016437,2]
[363895484,1748915438028,-300.0,0.00016437,2]
[363895486,1748915438036,-252.598,0.00016437,2]
[363895488,1748915438046,-347.0,0.00016438,2]
[363895490,1748915438056,-127.28511718,0.00016438,2]
[363895496,1748915438104,-309.54083341,0.00016438,2]
[363895498,1748915438114,-434.43436324,0.00016438,2]
[363895500,1748915438124,-436.28674074,0.00016438,2]
[363895502,1748915438134,-441.23305942,0.00016438,2]
[363895503,1748915438143,-440.0,0.00016438,2]
[363895505,1748915438155,-440.0,0.00016438,2]
[363895507,1748915438165,-282.9535982,0.00016438,2]
[363895508,1748915438174,-450.4381635,0.00016438,2]
[363895509,1748915438184,-440.0,0.00016438,2]
[363895510,1748915438195,-440.0,0.00016438,2]
[363895511,1748915438206,-539.28454572,0.00016438,2]
[363895512,1748915438216,-440.0,0.00016438,2]
[363895513,1748915438226,-453.36974434,0.00016438,2]
[363895514,1748915438235,-440.0,0.00016438,2]
[363895515,1748915438245,-440.0,0.00016438,2]
[363895516,1748915438255,-193.31277129,0.00016438,2]
[363895517,1748915438264,-435.91014777,0.00016438,2]
[363895518,1748915438275,-453.86201948,0.00016438,2]
[363895519,1748915438285,-440.0,0.00016438,2]
[363895520,1748915438295,-440.0,0.00016438,2]
[363895521,1748915438304,-400.93154517,0.00016438,2]
[363895522,1748915438313,-440.0,0.00016438,2]
[363895523,1748915438323,-440.0,0.00016438,2]
[363895524,1748915438333,-534.44427948,0.00016438,2]
[363895525,1748915438343,-439.3212925,0.00016438,2]
[363895526,1748915438352,-440.0,0.00016438,2]
[363895527,1748915438362,-405.96847406,0.00016438,2]
[363895528,1748915438372,-450.87106725,0.00016438,2]
[363895529,1748915438382,-455.6088391,0.00016438,2]
[363895530,1748915438392,-437.80525752,0.00016438,2]
[363895531,1748915438403,-440.0,0.00016438,2]
[363895532,1748915438413,-439.32506764,0.00016438,2]
[363895533,1748915438423,-396.14914467,0.00016438,2]
[363895534,1748915438433,-440.0,0.00016438,2]
[363895535,1748915438443,-440.0,0.00016438,2]
[363895536,1748915438452,-444.9000085,0.00016438,2]
[363895537,1748915438462,-440.0,0.00016438,2]
[363895538,1748915438471,-449.95866092,0.00016438,2]
[363895539,1748915438481,-440.0,0.00016438,2]
[363895540,1748915438491,-425.58520381,0.00016438,2]
[363895541,1748915438501,-439.99840326,0.00016438,2]
[363895542,1748915438511,-191.57003985,0.00016438,2]
[363895543,1748915438520,-440.0,0.00016438,2]
[363895544,1748915438530,-430.0,0.00016438,2]
[363895545,1748915438540,-447.93024049,0.00016438,2]
[363895546,1748915438550,-440.0,0.00016438,2]
[363895547,1748915438560,-453.73292868,0.00016438,2]
[363895548,1748915438573,-440.0,0.00016438,2]
[363895549,1748915438583,-440.0,0.00016438,2]
[363895550,1748915438592,-440.0,0.00016438,2]
[363895551,1748915438602,-446.5904271,0.00016438,2]
[363895552,1748915438611,-440.0,0.00016438,2]
[363895553,1748915438621,-440.0,0.00016438,2]
[363895554,1748915438630,-434.62305866,0.00016438,2]
[363895555,1748915438641,-448.57196544,0.00016438,2]
[363895556,1748915438652,-440.0,0.00016438,2]
[363895557,1748915438665,-463.30905075,0.00016438,2]
[363895558,1748915438675,-440.0,0.00016438,2]
[363895559,1748915438684,-437.02862535,0.00016438,2]
[363895560,1748915438694,-3072.97,0.00016438,2]
[363895561,1748915438705,-440.0,0.00016438,2]
[363895562,1748915438715,-366.37214809,0.00016438,2]
[363895563,1748915438726,-440.0,0.00016438,2]
[363895564,1748915438736,-468.68033294,0.00016438,2]
[363895565,1748915438745,-439.28906745,0.00016438,2]
[363895566,1748915438756,-440.0,0.00016438,2]
[363895567,1748915438766,-440.0,0.00016438,2]
[363895568,1748915438776,-436.43430795,0.00016438,2]
[363895569,1748915438786,-440.0,0.00016438,2]
[363895570,1748915438800,-445.47862158,0.00016438,2]
[363895571,1748915438809,-264.43303393,0.00016438,2]
[363895572,1748915438819,-447.06173836,0.00016438,2]
[363895573,1748915438828,-440.0,0.00016438,2]
[363895574,1748915438838,-673.12,0.00016438,2]
[363895575,1748915438847,-435.6649069,0.00016438,2]
[363895576,1748915438857,-440.0,0.00016438,2]
[363895577,1748915438868,-445.52063828,0.00016438,2]
[363895578,1748915438877,-440.0,0.00016438,2]
[363895579,1748915438887,-448.33052556,0.00016438,2]
[363895580,1748915438897,-440.0,0.00016438,2]
[363895581,1748915438906,-440.0,0.00016438,2]
[363895582,1748915438916,-440.0,0.00016438,2]
[363895583,1748915438925,-1140.48,0.00016438,2]
[363895584,1748915438935,-440.0,0.00016438,2]
[363895585,1748915438944,-423.92269372,0.00016438,2]
[363895586,1748915438954,-1166.26,0.00016438,2]
[363895587,1748915438964,-1327.55,0.00016438,2]
[363895588,1748915438973,-440.0,0.00016438,2]
[363895589,1748915438983,-446.00542154,0.00016438,2]
[363895590,1748915438992,-442.60446844,0.00016438,2]
[363895591,1748915439002,-564.33991269,0.00016438,2]
[363895592,1748915439012,-443.47075025,0.00016438,2]
[363895593,1748915439021,-440.0,0.00016438,2]
[363895594,1748915439031,-446.81704989,0.00016438,2]
[363895595,1748915439041,-2891.61,0.00016438,2]
[363895596,1748915439051,-461.51852548,0.00016438,2]
[363895597,1748915439060,-440.0,0.00016438,2]
[363895598,1748915439070,-820.65,0.00016438,2]
[363895599,1748915439079,-437.8410257,0.00016438,2]
[363895600,1748915439088,-434.36117517,0.00016438,2]
[363895601,1748915439098,-385.05348119,0.00016438,2]
[363895602,1748915439107,-440.0,0.00016438,2]
[363895603,1748915439117,-440.0,0.00016438,2]
[363895604,1748915439126,-440.0,0.00016438,2]
[363895605,1748915439135,-241.19026267,0.00016438,2]
[363895606,1748915439145,-1856.38,0.00016438,2]
[363895607,1748915439155,-446.57418429,0.00016438,2]
[363895608,1748915439165,-440.0,0.00016438,2]
[363895609,1748915439176,-440.0,0.00016438,2]
[363895610,1748915439185,-442.74436489,0.00016438,2]
[363895611,1748915439194,-440.0,0.00016438,2]
[363895612,1748915439204,-487.61,0.00016438,2]
[363895613,1748915439213,-360.3465514,0.00016438,2]
[363895614,1748915439223,-440.0,0.00016438,2]
[363895615,1748915439372,-440.0,0.00016438,2]
[363895616,1748915439383,-246.37070414,0.00016438,2]
[363895617,1748915439393,-440.0,0.00016438,2]
[363895618,1748915439406,-432.93608731,0.00016438,2]
[363895619,1748915439416,-442.0949607,0.00016438,2]
[363895620,1748915439426,-445.9621668,0.00016438,2]
[363895621,1748915439435,-440.0,0.00016438,2]
[363895622,1748915439444,-1499.33,0.00016438,2]
[363895623,1748915439456,-3772.31,0.00016438,2]
[363895624,1748915439475,-444.62046374,0.00016438,2]
[363895625,1748915439485,-578.77,0.00016438,2]
[363895626,1748915439495,-440.0,0.00016438,2]
[363895627,1748915439504,-2565.31,0.00016438,2]
[363895628,1748915439515,-445.53039628,0.00016438,2]
[363895629,1748915439524,-444.11579882,0.00016438,2]
[363895630,1748915439533,-343.27392431,0.00016438,2]
[363895631,1748915439542,-566.74530772,0.00016438,2]
[363895632,1748915439551,-442.46114812,0.00016438,2]
[363895633,1748915439561,-579.44252758,0.00016438,2]
[363895634,1748915439570,-442.09281493,0.00016438,2]
[363895635,1748915439579,-440.0,0.00016438,2]
[363895636,1748915439589,-434.48872356,0.00016438,2]
[363895637,1748915439599,-440.0,0.00016438,2]
[363895638,1748915439608,-440.0,0.00016438,2]
[363895639,1748915439619,-929.64,0.00016438,2]
[363895640,1748915439629,-1474.4,0.00016438,2]
[363895641,1748915439639,-509.17446259,0.00016438,2]
[363895642,1748915439649,-451.64,0.00016438,2]
[363895643,1748915439658,-430.0,0.00016438,2]
[363895644,1748915439667,-440.0,0.00016438,2]
[363895645,1748915439677,-617.96,0.00016438,2]
[363895646,1748915439686,-440.0,0.00016438,2]
[363895647,1748915439696,-440.0,0.00016438,2]
[363895648,1748915439705,-410.79505187,0.00016438,2]
[363895649,1748915439715,-440.0,0.00016438,2]
[363895650,1748915439724,-440.0,0.00016438,2]